[Event "Titled Tuesday Blitz October 31 Early 2023"]
[White "Shapiro, Daniel"]
[Black "Sharapov, Evgeny"]
[WhiteFideId "2001780"]
[BlackFideId "14103133"]
[WhiteElo "2308"]
[BlackElo "2644"]
[Result "0-1"]
[Round "1"]
[TimeControl "180+1"]
[Date "2023.10.31"]
[WhiteClock "0:00:06"]
[BlackClock "0:01:59"]
[Board "130"]

1. d4 {[%clk 0:02:58]}  Nf6 {[%clk 0:02:59]} 2. c4 {[%clk 0:02:57]}  e6 {[%clk 0:02:59]} 3. g3 {[%clk 0:02:56]}  Bb4+ {[%clk 0:02:59]} 4. Bd2 {[%clk 0:02:55]}  Qe7 {[%clk 0:02:58]} 5. Bg2 {[%clk 0:02:54]}  O-O {[%clk 0:02:57]} 6. Nf3 {[%clk 0:02:54]}  d5 {[%clk 0:02:57]} 7. Qc2 {[%clk 0:02:52]}  Nbd7 {[%clk 0:02:53]} 8. O-O {[%clk 0:02:51]}  Bxd2 {[%clk 0:02:51]} 9. Nbxd2 {[%clk 0:02:50]}  c6 {[%clk 0:02:51]} 10. Rfe1 {[%clk 0:02:48]}  e5 {[%clk 0:02:51]} 11. e4 {[%clk 0:02:47]}  dxe4 {[%clk 0:02:46]} 12. Nxe5 {[%clk 0:02:39]}  Nxe5 {[%clk 0:02:46]} 13. dxe5 {[%clk 0:02:39]}  Qxe5 {[%clk 0:02:45]} 14. Nxe4 {[%clk 0:02:40]}  Bf5 {[%clk 0:02:41]} 15. Qc3 {[%clk 0:02:29]}  Qxc3 {[%clk 0:02:39]} 16. Nxc3 {[%clk 0:02:29]}  Rfe8 {[%clk 0:02:38]} 17. b3 {[%clk 0:02:16]}  Kf8 {[%clk 0:02:37]} 18. Rad1 {[%clk 0:02:09]}  Rad8 {[%clk 0:02:36]} 19. Rxe8+ {[%clk 0:02:04]}  Kxe8 {[%clk 0:02:36]} 20. Rxd8+ {[%clk 0:02:02]}  Kxd8 {[%clk 0:02:36]} 21. f3 {[%clk 0:01:54]}  h5 {[%clk 0:02:34]} 22. Kf2 {[%clk 0:01:54]}  Kd7 {[%clk 0:02:33]} 23. Ke3 {[%clk 0:01:54]}  Kd6 {[%clk 0:02:33]} 24. h3 {[%clk 0:01:52]}  Bd7 {[%clk 0:02:26]} 25. g4 {[%clk 0:01:51]}  h4 {[%clk 0:02:26]} 26. f4 {[%clk 0:01:49]}  b6 {[%clk 0:02:25]} 27. Ne4+ {[%clk 0:01:45]}  Nxe4 {[%clk 0:02:25]} 28. Bxe4 {[%clk 0:01:45]}  f6 {[%clk 0:02:23]} 29. Kd4 {[%clk 0:01:43]}  c5+ {[%clk 0:02:23]} 30. Kd3 {[%clk 0:01:35]}  g5 {[%clk 0:02:23]} 31. Ke3 {[%clk 0:01:34]}  Be6 {[%clk 0:02:20]} 32. Bb7 {[%clk 0:01:32]}  Bf7 {[%clk 0:02:18]} 33. Be4 {[%clk 0:01:31]}  a6 {[%clk 0:02:17]} 34. Bb7 {[%clk 0:01:30]}  a5 {[%clk 0:02:17]} 35. Be4 {[%clk 0:01:30]}  a4 {[%clk 0:02:17]} 36. Bb7 {[%clk 0:01:28]}  a3 {[%clk 0:02:17]} 37. Be4 {[%clk 0:01:28]}  Be8 {[%clk 0:02:16]} 38. f5 {[%clk 0:01:03]}  b5 {[%clk 0:02:16]} 39. Bd5 {[%clk 0:00:51]}  Ke5 {[%clk 0:02:13]} 40. Bg8 {[%clk 0:00:48]}  bxc4 {[%clk 0:02:12]} 41. Bxc4 {[%clk 0:00:47]}  Bc6 {[%clk 0:02:11]} 42. Bf1 {[%clk 0:00:31]}  Be4 {[%clk 0:02:10]} 43. Bd3 {[%clk 0:00:19]}  Bg2 {[%clk 0:02:08]} 44. Kf2 {[%clk 0:00:16]}  Bd5 {[%clk 0:02:01]} 45. Ke3 {[%clk 0:00:15]}  Bxb3 {[%clk 0:02:00]} 46. Bb1 {[%clk 0:00:12]}  Bd5 {[%clk 0:02:00]} 47. Kd3 {[%clk 0:00:06]}  Be4+ {[%clk 0:01:59]} 0-1


[Site "https://www.chess.com"]

[Event "Titled Tuesday Blitz October 31 Early 2023"]
[White "Seemann, Jakub"]
[Black "Antonio, Jorge Carlos"]
[WhiteFideId "21874697"]
[BlackFideId "113190"]
[WhiteElo "2636"]
[BlackElo "2303"]
[Result "0-1"]
[Round "1"]
[TimeControl "180+1"]
[Date "2023.10.31"]
[WhiteClock "0:00:00"]
[BlackClock "0:01:11"]
[Board "133"]

1. d4 {[%clk 0:03:00]}  d5 {[%clk 0:02:39]} 2. Bf4 {[%clk 0:02:58]}  c6 {[%clk 0:02:32]} 3. e3 {[%clk 0:02:57]}  Nf6 {[%clk 0:02:25]} 4. Nf3 {[%clk 0:02:58]}  Bg4 {[%clk 0:02:23]} 5. c4 {[%clk 0:02:57]}  Qb6 {[%clk 0:02:13]} 6. b3 {[%clk 0:02:54]}  e5 {[%clk 0:02:10]} 7. dxe5 {[%clk 0:02:19]}  Bb4+ {[%clk 0:02:04]} 8. Ke2 {[%clk 0:02:19]}  Ne4 {[%clk 0:01:58]} 9. a3 {[%clk 0:02:15]}  Bc3 {[%clk 0:01:55]} 10. Ra2 {[%clk 0:02:09]}  Nd7 {[%clk 0:01:50]} 11. h3 {[%clk 0:02:07]}  Bh5 {[%clk 0:01:45]} 12. g4 {[%clk 0:02:05]}  Bg6 {[%clk 0:01:45]} 13. Bg2 {[%clk 0:01:51]}  dxc4 {[%clk 0:01:39]} 14. bxc4 {[%clk 0:01:40]}  Rd8 {[%clk 0:01:32]} 15. Nbd2 {[%clk 0:00:14]}  Bxd2 {[%clk 0:01:27]} 16. Kf1 {[%clk 0:00:05]}  Ndc5 {[%clk 0:01:24]} 17. Nxd2 {[%clk 0:00:04]}  Nc3 {[%clk 0:01:22]} 18. Qa1 {[%clk 0:00:04]}  Nxa2 {[%clk 0:01:21]} 19. Qxa2 {[%clk 0:00:05]}  Nd3 {[%clk 0:01:17]} 20. Kg1 {[%clk 0:00:03]}  O-O {[%clk 0:01:13]} 21. Kh2 {[%clk 0:00:03]}  Nxf4 {[%clk 0:01:12]} 22. exf4 {[%clk 0:00:03]}  Qd4 {[%clk 0:01:12]} 23. Kg3 {[%clk 0:00:00]}  Qxd2 {[%clk 0:01:11]} 0-1


[Site "https://www.chess.com"]

[Event "Titled Tuesday Blitz October 31 Early 2023"]
[White "Smirnov, Timofey"]
[Black "Skliarov, Viktor"]
[WhiteFideId "24176427"]
[BlackFideId "14106736"]
[WhiteElo "2301"]
[BlackElo "2636"]
[Result "0-1"]
[Round "1"]
[TimeControl "180+1"]
[Date "2023.10.31"]
[WhiteClock "0:00:00"]
[BlackClock "0:01:25"]
[Board "134"]

1. d4 {[%clk 0:02:58]}  Nf6 {[%clk 0:02:59]} 2. Bf4 {[%clk 0:02:58]}  g6 {[%clk 0:03:00]} 3. e3 {[%clk 0:02:58]}  Bg7 {[%clk 0:03:00]} 4. Nf3 {[%clk 0:02:56]}  O-O {[%clk 0:03:00]} 5. h3 {[%clk 0:02:57]}  d6 {[%clk 0:03:01]} 6. Be2 {[%clk 0:02:56]}  c5 {[%clk 0:03:01]} 7. c3 {[%clk 0:02:56]}  Qb6 {[%clk 0:03:02]} 8. Qb3 {[%clk 0:02:42]}  Be6 {[%clk 0:03:01]} 9. Qc2 {[%clk 0:02:32]}  Nc6 {[%clk 0:02:58]} 10. O-O {[%clk 0:02:30]}  Rac8 {[%clk 0:02:57]} 11. Qd2 {[%clk 0:02:22]}  Ne4 {[%clk 0:02:41]} 12. Qd1 {[%clk 0:02:20]}  Qxb2 {[%clk 0:02:34]} 13. d5 {[%clk 0:02:04]}  Qxa1 {[%clk 0:02:30]} 14. dxe6 {[%clk 0:02:02]}  fxe6 {[%clk 0:02:24]} 15. Qc2 {[%clk 0:01:54]}  Nxc3 {[%clk 0:02:12]} 16. Nxc3 {[%clk 0:01:41]}  Qxc3 {[%clk 0:02:12]} 17. Qa4 {[%clk 0:01:34]}  e5 {[%clk 0:01:42]} 18. Bg5 {[%clk 0:01:30]}  h6 {[%clk 0:01:42]} 19. Bh4 {[%clk 0:01:29]}  g5 {[%clk 0:01:39]} 20. Bg3 {[%clk 0:01:29]}  d5 {[%clk 0:01:39]} 21. Bb5 {[%clk 0:01:11]}  e4 {[%clk 0:01:37]} 22. Nh2 {[%clk 0:01:04]}  a6 {[%clk 0:01:36]} 23. Bxc6 {[%clk 0:01:04]}  Rxc6 {[%clk 0:01:37]} 24. Ng4 {[%clk 0:01:00]}  h5 {[%clk 0:01:33]} 25. f4 {[%clk 0:00:27]}  hxg4 {[%clk 0:01:30]} 26. hxg4 {[%clk 0:00:27]}  Qxe3+ {[%clk 0:01:26]} 27. Bf2 {[%clk 0:00:26]}  Qxf4 {[%clk 0:01:26]} 28. Qd1 {[%clk 0:00:20]}  e3 {[%clk 0:01:24]} 29. Bh4 {[%clk 0:00:03]}  Qxf1+ {[%clk 0:01:23]} 30. Qxf1 {[%clk 0:00:03]}  Rxf1+ {[%clk 0:01:24]} 31. Kxf1 {[%clk 0:00:00]}  gxh4 {[%clk 0:01:25]} 0-1


[Site "https://www.chess.com"]

[Event "Titled Tuesday Blitz October 31 Early 2023"]
[White "Soumya, Swaminathan"]
[Black "Pinheiro, Iung Alicio de O."]
[WhiteFideId "5016193"]
[BlackFideId "2104350"]
[WhiteElo "2298"]
[BlackElo "2631"]
[Result "1-0"]
[Round "1"]
[TimeControl "180+1"]
[Date "2023.10.31"]
[WhiteClock "0:00:06"]
[BlackClock "0:00:00"]
[Board "136"]

1. e4 {[%clk 0:03:00]}  c5 {[%clk 0:02:59]} 2. Nf3 {[%clk 0:03:00]}  Nc6 {[%clk 0:02:58]} 3. d4 {[%clk 0:02:58]}  cxd4 {[%clk 0:02:58]} 4. Nxd4 {[%clk 0:02:59]}  e5 {[%clk 0:02:58]} 5. Nb5 {[%clk 0:02:59]}  d6 {[%clk 0:02:58]} 6. c4 {[%clk 0:02:53]}  Be7 {[%clk 0:02:57]} 7. Be3 {[%clk 0:02:42]}  f5 {[%clk 0:02:44]} 8. exf5 {[%clk 0:02:36]}  Bxf5 {[%clk 0:02:44]} 9. N1c3 {[%clk 0:02:32]}  a6 {[%clk 0:02:43]} 10. Na3 {[%clk 0:02:32]}  Nf6 {[%clk 0:02:44]} 11. Bd3 {[%clk 0:02:27]}  Be6 {[%clk 0:02:44]} 12. O-O {[%clk 0:02:13]}  O-O {[%clk 0:02:43]} 13. Nc2 {[%clk 0:01:40]}  Ng4 {[%clk 0:02:25]} 14. Bd2 {[%clk 0:01:37]}  Bg5 {[%clk 0:02:24]} 15. Bxg5 {[%clk 0:01:31]}  Qxg5 {[%clk 0:02:22]} 16. Ne4 {[%clk 0:01:32]}  Qf4 {[%clk 0:01:59]} 17. g3 {[%clk 0:01:11]}  Qh6 {[%clk 0:01:56]} 18. h4 {[%clk 0:01:12]}  Rad8 {[%clk 0:01:49]} 19. Ng5 {[%clk 0:01:11]}  d5 {[%clk 0:01:24]} 20. cxd5 {[%clk 0:00:58]}  Rxd5 {[%clk 0:00:47]} 21. Nxe6 {[%clk 0:00:57]}  Qxe6 {[%clk 0:00:43]} 22. Bc4 {[%clk 0:00:57]}  Rfd8 {[%clk 0:00:42]} 23. Qe2 {[%clk 0:00:38]}  b5 {[%clk 0:00:30]} 24. Bxd5 {[%clk 0:00:33]}  Rxd5 {[%clk 0:00:29]} 25. Rad1 {[%clk 0:00:33]}  Nf6 {[%clk 0:00:25]} 26. Rxd5 {[%clk 0:00:31]}  Qxd5 {[%clk 0:00:22]} 27. b3 {[%clk 0:00:29]}  h5 {[%clk 0:00:17]} 28. Rd1 {[%clk 0:00:28]}  Qc5 {[%clk 0:00:16]} 29. a3 {[%clk 0:00:18]}  Qc3 {[%clk 0:00:15]} 30. Qd3 {[%clk 0:00:16]}  Qc5 {[%clk 0:00:15]} 31. b4 {[%clk 0:00:16]}  Qb6 {[%clk 0:00:10]} 32. Qd6 {[%clk 0:00:14]}  Ng4 {[%clk 0:00:08]} 33. Rd2 {[%clk 0:00:09]}  Qb7 {[%clk 0:00:05]} 34. Qd5+ {[%clk 0:00:06]}  Kh7 {[%clk 0:00:00]} 35. Ne3 {[%clk 0:00:06]} 1-0


[Site "https://www.chess.com"]

[Event "Titled Tuesday Blitz October 31 Early 2023"]
[White "Chinguun, Sumiya"]
[Black "Skuhala, Barbara"]
[WhiteFideId "4902572"]
[BlackFideId "14605465"]
[WhiteElo "2626"]
[BlackElo "2289"]
[Result "1-0"]
[Round "1"]
[TimeControl "180+1"]
[Date "2023.10.31"]
[WhiteClock "0:01:25"]
[BlackClock "0:00:25"]
[Board "139"]

1. e4 {[%clk 0:03:00]}  c6 {[%clk 0:02:59]} 2. c4 {[%clk 0:02:59]}  e6 {[%clk 0:02:53]} 3. d4 {[%clk 0:02:58]}  d5 {[%clk 0:02:53]} 4. Nc3 {[%clk 0:02:56]}  Nf6 {[%clk 0:02:50]} 5. e5 {[%clk 0:02:55]}  Nfd7 {[%clk 0:02:50]} 6. cxd5 {[%clk 0:02:55]}  cxd5 {[%clk 0:02:50]} 7. f4 {[%clk 0:02:54]}  a6 {[%clk 0:02:51]} 8. Nf3 {[%clk 0:02:54]}  Qb6 {[%clk 0:02:50]} 9. Bd3 {[%clk 0:02:52]}  Nc6 {[%clk 0:02:50]} 10. Be3 {[%clk 0:02:51]}  g6 {[%clk 0:02:50]} 11. O-O {[%clk 0:02:51]}  Bg7 {[%clk 0:02:50]} 12. a3 {[%clk 0:02:47]}  O-O {[%clk 0:02:47]} 13. b4 {[%clk 0:02:47]}  Qc7 {[%clk 0:02:47]} 14. Rc1 {[%clk 0:02:46]}  b5 {[%clk 0:02:42]} 15. Qe1 {[%clk 0:02:35]}  Nb6 {[%clk 0:02:42]} 16. Qh4 {[%clk 0:02:34]}  Nc4 {[%clk 0:02:41]} 17. Bxc4 {[%clk 0:02:34]}  dxc4 {[%clk 0:02:40]} 18. Ne4 {[%clk 0:02:32]}  h5 {[%clk 0:02:35]} 19. Nf6+ {[%clk 0:02:31]}  Bxf6 {[%clk 0:02:34]} 20. exf6 {[%clk 0:02:31]}  e5 {[%clk 0:02:21]} 21. fxe5 {[%clk 0:02:30]}  Rd8 {[%clk 0:02:05]} 22. Qg5 {[%clk 0:02:28]}  Kf8 {[%clk 0:01:48]} 23. Qh6+ {[%clk 0:02:26]}  Ke8 {[%clk 0:01:49]} 24. Rcd1 {[%clk 0:02:09]}  Bg4 {[%clk 0:01:35]} 25. d5 {[%clk 0:01:46]}  Nxe5 {[%clk 0:01:24]} 26. Nxe5 {[%clk 0:01:40]}  Qxe5 {[%clk 0:01:21]} 27. Bf4 {[%clk 0:01:27]}  Qc3 {[%clk 0:00:27]} 28. Rde1+ {[%clk 0:01:24]}  Kd7 {[%clk 0:00:27]} 29. Re7+ {[%clk 0:01:24]}  Kc8 {[%clk 0:00:28]} 30. Rc7+ {[%clk 0:01:25]}  Kb8 {[%clk 0:00:25]} 31. Rxc4+ {[%clk 0:01:25]} 1-0


[Site "https://www.chess.com"]

[Event "Titled Tuesday Blitz October 31 Early 2023"]
[White "Cardozo Munar, Carlos Eduardo"]
[Black "Bayramov, Zaur"]
[WhiteFideId "4409477"]
[BlackFideId "13405080"]
[WhiteElo "2286"]
[BlackElo "2625"]
[Result "0-1"]
[Round "1"]
[TimeControl "180+1"]
[Date "2023.10.31"]
[WhiteClock "0:02:16"]
[BlackClock "0:02:06"]
[Board "140"]

1. e4 {[%clk 0:02:55]}  c5 {[%clk 0:02:57]} 2. Nf3 {[%clk 0:02:54]}  e6 {[%clk 0:02:57]} 3. Nc3 {[%clk 0:02:53]}  a6 {[%clk 0:02:56]} 4. a4 {[%clk 0:02:52]}  Nc6 {[%clk 0:02:55]} 5. Bc4 {[%clk 0:02:52]}  Nf6 {[%clk 0:02:53]} 6. h3 {[%clk 0:02:52]}  d5 {[%clk 0:02:53]} 7. exd5 {[%clk 0:02:53]}  exd5 {[%clk 0:02:53]} 8. Be2 {[%clk 0:02:53]}  d4 {[%clk 0:02:52]} 9. Nb1 {[%clk 0:02:53]}  Bd6 {[%clk 0:02:51]} 10. d3 {[%clk 0:02:53]}  O-O {[%clk 0:02:50]} 11. Bg5 {[%clk 0:02:53]}  h6 {[%clk 0:02:49]} 12. Bh4 {[%clk 0:02:53]}  g5 {[%clk 0:02:50]} 13. Bg3 {[%clk 0:02:53]}  Bxg3 {[%clk 0:02:49]} 14. fxg3 {[%clk 0:02:54]}  Qd6 {[%clk 0:02:48]} 15. O-O {[%clk 0:02:54]}  Qxg3 {[%clk 0:02:45]} 16. Nbd2 {[%clk 0:02:52]}  Bxh3 {[%clk 0:02:41]} 17. Rf2 {[%clk 0:02:52]}  Ng4 {[%clk 0:02:39]} 18. Qf1 {[%clk 0:02:48]}  Ne3 {[%clk 0:02:20]} 19. Qe1 {[%clk 0:02:33]}  Bxg2 {[%clk 0:02:15]} 20. Nf1 {[%clk 0:02:16]}  Bxf1+ {[%clk 0:02:13]} 21. Kh1 {[%clk 0:02:16]}  Bg2+ {[%clk 0:02:07]} 22. Rxg2 {[%clk 0:02:16]}  Qxg2# {[%clk 0:02:06]} 0-1


[Site "https://www.chess.com"]

[Event "Titled Tuesday Blitz October 31 Early 2023"]
[White "Guzman Moneo, Alberto"]
[Black "Sourath Biswas"]
[WhiteFideId "2209616"]
[BlackFideId "35091484"]
[WhiteElo "2278"]
[BlackElo "2624"]
[Result "1-0"]
[Round "1"]
[TimeControl "180+1"]
[Date "2023.10.31"]
[WhiteClock "0:00:18"]
[BlackClock "0:00:01"]
[Board "142"]

1. e4 {[%clk 0:02:55]}  c6 {[%clk 0:02:59]} 2. Nf3 {[%clk 0:02:54]}  d5 {[%clk 0:02:59]} 3. d3 {[%clk 0:02:54]}  g6 {[%clk 0:02:53]} 4. e5 {[%clk 0:02:48]}  Bg7 {[%clk 0:02:52]} 5. d4 {[%clk 0:02:47]}  Bf5 {[%clk 0:02:41]} 6. c4 {[%clk 0:02:39]}  Nh6 {[%clk 0:02:31]} 7. Nc3 {[%clk 0:02:33]}  Bg4 {[%clk 0:02:16]} 8. Qb3 {[%clk 0:02:22]}  dxc4 {[%clk 0:02:07]} 9. Qxb7 {[%clk 0:02:14]}  Nd7 {[%clk 0:02:05]} 10. Bxc4 {[%clk 0:02:02]}  O-O {[%clk 0:01:57]} 11. Be3 {[%clk 0:01:49]}  Rb8 {[%clk 0:01:55]} 12. Qxa7 {[%clk 0:01:44]}  Rxb2 {[%clk 0:01:48]} 13. O-O {[%clk 0:01:38]}  Nf5 {[%clk 0:01:41]} 14. Qa3 {[%clk 0:01:32]}  Rb8 {[%clk 0:01:28]} 15. Ne4 {[%clk 0:01:27]}  Nb6 {[%clk 0:01:22]} 16. Bb3 {[%clk 0:01:18]}  Bxf3 {[%clk 0:01:14]} 17. gxf3 {[%clk 0:01:17]}  Nxd4 {[%clk 0:01:15]} 18. Rad1 {[%clk 0:01:10]}  Nxf3+ {[%clk 0:01:02]} 19. Kg2 {[%clk 0:01:10]}  Nh4+ {[%clk 0:01:03]} 20. Kh3 {[%clk 0:00:56]}  Qc8+ {[%clk 0:01:02]} 21. Kxh4 {[%clk 0:00:56]}  Qf5 {[%clk 0:01:02]} 22. Ng3 {[%clk 0:00:47]}  Qxe5 {[%clk 0:00:32]} 23. Qc5 {[%clk 0:00:37]}  Nd5 {[%clk 0:00:28]} 24. Bxd5 {[%clk 0:00:37]}  cxd5 {[%clk 0:00:29]} 25. Qxd5 {[%clk 0:00:31]}  Qb2 {[%clk 0:00:18]} 26. Rb1 {[%clk 0:00:20]}  Qe2 {[%clk 0:00:01]} 27. Rxb8 {[%clk 0:00:18]} 1-0


[Site "https://www.chess.com"]

[Event "Titled Tuesday Blitz October 31 Early 2023"]
[White "Kashefi, Amir Hosein"]
[Black "Nekoo04"]
[WhiteFideId "12557935"]
[WhiteElo "2621"]
[BlackElo "2277"]
[Result "1-0"]
[Round "1"]
[TimeControl "180+1"]
[Date "2023.10.31"]
[WhiteClock "0:00:15"]
[BlackClock "0:00:21"]
[Board "143"]

1. d4 {[%clk 0:03:00]}  d5 {[%clk 0:02:42]} 2. c4 {[%clk 0:02:58]}  e6 {[%clk 0:02:41]} 3. cxd5 {[%clk 0:02:55]}  exd5 {[%clk 0:02:42]} 4. Nc3 {[%clk 0:02:47]}  c6 {[%clk 0:02:42]} 5. Qc2 {[%clk 0:02:44]}  Nf6 {[%clk 0:02:40]} 6. Bg5 {[%clk 0:02:29]}  Be7 {[%clk 0:02:40]} 7. e3 {[%clk 0:02:28]}  Nbd7 {[%clk 0:02:39]} 8. Bd3 {[%clk 0:02:25]}  h6 {[%clk 0:02:39]} 9. Bf4 {[%clk 0:02:25]}  Nh5 {[%clk 0:02:39]} 10. Nge2 {[%clk 0:02:16]}  Nxf4 {[%clk 0:02:36]} 11. Nxf4 {[%clk 0:02:16]}  Bd6 {[%clk 0:02:36]} 12. Nfe2 {[%clk 0:02:15]}  Nf6 {[%clk 0:02:29]} 13. h3 {[%clk 0:02:08]}  Qe7 {[%clk 0:02:27]} 14. Rc1 {[%clk 0:02:02]}  O-O {[%clk 0:02:25]} 15. O-O {[%clk 0:01:21]}  Re8 {[%clk 0:02:20]} 16. a3 {[%clk 0:01:19]}  a5 {[%clk 0:02:10]} 17. Na4 {[%clk 0:01:14]}  Ne4 {[%clk 0:02:04]} 18. Nb6 {[%clk 0:01:11]}  Rb8 {[%clk 0:01:41]} 19. Nxc8 {[%clk 0:01:02]}  Rbxc8 {[%clk 0:01:41]} 20. Bxe4 {[%clk 0:01:02]}  dxe4 {[%clk 0:01:40]} 21. Nc3 {[%clk 0:00:55]}  Qh4 {[%clk 0:01:40]} 22. Rfd1 {[%clk 0:00:51]}  Re6 {[%clk 0:01:22]} 23. d5 {[%clk 0:00:45]}  cxd5 {[%clk 0:01:21]} 24. Rxd5 {[%clk 0:00:44]}  Rg6 {[%clk 0:01:20]} 25. Kf1 {[%clk 0:00:38]}  Rc6 {[%clk 0:00:54]} 26. Rcd1 {[%clk 0:00:36]}  Be7 {[%clk 0:00:31]} 27. Qxe4 {[%clk 0:00:30]}  Rxc3 {[%clk 0:00:31]} 28. Qxh4 {[%clk 0:00:28]}  Bxh4 {[%clk 0:00:29]} 29. bxc3 {[%clk 0:00:28]}  Rc6 {[%clk 0:00:29]} 30. Rxa5 {[%clk 0:00:25]}  Rxc3 {[%clk 0:00:29]} 31. Rd2 {[%clk 0:00:24]}  Bf6 {[%clk 0:00:26]} 32. Ke2 {[%clk 0:00:23]}  Kh7 {[%clk 0:00:26]} 33. Ra7 {[%clk 0:00:22]}  Rb3 {[%clk 0:00:27]} 34. Rd7 {[%clk 0:00:21]}  Rb2+ {[%clk 0:00:24]} 35. Kf3 {[%clk 0:00:21]}  Bc3 {[%clk 0:00:25]} 36. Rxf7 {[%clk 0:00:20]}  Be1 {[%clk 0:00:25]} 37. Kg3 {[%clk 0:00:20]}  Kg6 {[%clk 0:00:24]} 38. Raxb7 {[%clk 0:00:20]}  Bxf2+ {[%clk 0:00:25]} 39. Kf3 {[%clk 0:00:16]}  Ra2 {[%clk 0:00:24]} 40. Rxg7+ {[%clk 0:00:16]}  Kh5 {[%clk 0:00:21]} 41. Rb5+ {[%clk 0:00:15]} 1-0


[Site "https://www.chess.com"]

[Event "Titled Tuesday Blitz October 31 Early 2023"]
[White "Ng, Gary"]
[Black "Ahmad, Khagan"]
[WhiteFideId "2604914"]
[BlackFideId "13431552"]
[WhiteElo "2268"]
[BlackElo "2611"]
[Result "0-1"]
[Round "1"]
[TimeControl "180+1"]
[Date "2023.10.31"]
[WhiteClock "0:00:25"]
[BlackClock "0:00:10"]
[Board "148"]

1. Nf3 {[%clk 0:03:00]}  Nf6 {[%clk 0:02:59]} 2. c4 {[%clk 0:03:00]}  e6 {[%clk 0:03:00]} 3. g3 {[%clk 0:03:00]}  d5 {[%clk 0:03:00]} 4. Bg2 {[%clk 0:03:00]}  Be7 {[%clk 0:03:01]} 5. O-O {[%clk 0:03:01]}  O-O {[%clk 0:03:01]} 6. b3 {[%clk 0:03:02]}  c5 {[%clk 0:03:01]} 7. Bb2 {[%clk 0:03:02]}  Nc6 {[%clk 0:02:58]} 8. e3 {[%clk 0:03:02]}  b6 {[%clk 0:02:54]} 9. Qc1 {[%clk 0:02:55]}  Bb7 {[%clk 0:01:58]} 10. Rd1 {[%clk 0:02:52]}  d4 {[%clk 0:01:43]} 11. d3 {[%clk 0:02:47]}  e5 {[%clk 0:01:39]} 12. exd4 {[%clk 0:02:46]}  exd4 {[%clk 0:01:32]} 13. Nbd2 {[%clk 0:02:44]}  Nb4 {[%clk 0:01:32]} 14. Qb1 {[%clk 0:02:29]}  Qc7 {[%clk 0:01:11]} 15. a3 {[%clk 0:02:29]}  Nc6 {[%clk 0:01:11]} 16. Re1 {[%clk 0:02:29]}  Rfe8 {[%clk 0:01:09]} 17. Qc2 {[%clk 0:02:15]}  Bf8 {[%clk 0:01:05]} 18. Ng5 {[%clk 0:01:58]}  Ne5 {[%clk 0:01:00]} 19. Nge4 {[%clk 0:01:54]}  Nxe4 {[%clk 0:00:59]} 20. Nxe4 {[%clk 0:01:55]}  f5 {[%clk 0:00:57]} 21. Ng5 {[%clk 0:01:48]}  Bxg2 {[%clk 0:00:47]} 22. Kxg2 {[%clk 0:01:49]}  Qc6+ {[%clk 0:00:30]} 23. Kg1 {[%clk 0:01:45]}  h6 {[%clk 0:00:28]} 24. f4 {[%clk 0:01:45]}  Ng4 {[%clk 0:00:22]} 25. Nh3 {[%clk 0:01:42]}  Ne3 {[%clk 0:00:21]} 26. Qf2 {[%clk 0:01:42]}  b5 {[%clk 0:00:21]} 27. Re2 {[%clk 0:01:36]}  bxc4 {[%clk 0:00:21]} 28. bxc4 {[%clk 0:01:36]}  Rab8 {[%clk 0:00:21]} 29. Rae1 {[%clk 0:01:36]}  Rb3 {[%clk 0:00:21]} 30. Rd2 {[%clk 0:01:28]}  Qb7 {[%clk 0:00:13]} 31. Bc1 {[%clk 0:01:25]}  Rb1 {[%clk 0:00:13]} 32. Rde2 {[%clk 0:01:23]}  Ng4 {[%clk 0:00:13]} 33. Qf1 {[%clk 0:00:56]}  Rxe2 {[%clk 0:00:13]} 34. Qxe2 {[%clk 0:00:57]}  Qc6 {[%clk 0:00:13]} 35. Bd2 {[%clk 0:00:52]}  Rb2 {[%clk 0:00:13]} 36. Qd1 {[%clk 0:00:39]}  Ne3 {[%clk 0:00:13]} 37. Qe2 {[%clk 0:00:32]}  Bd6 {[%clk 0:00:10]} 38. Nf2 {[%clk 0:00:25]}  Qg2# {[%clk 0:00:10]} 0-1


[Site "https://www.chess.com"]

[Event "Titled Tuesday Blitz October 31 Early 2023"]
[White "Zaichenko, Daria"]
[Black "ArtemDyachuk"]
[WhiteFideId "4197453"]
[WhiteElo "2253"]
[BlackElo "2607"]
[Result "0-1"]
[Round "1"]
[TimeControl "180+1"]
[Date "2023.10.31"]
[WhiteClock "0:00:36"]
[BlackClock "0:01:42"]
[Board "152"]

1. e4 {[%clk 0:02:55]}  c5 {[%clk 0:02:59]} 2. Nf3 {[%clk 0:02:54]}  d6 {[%clk 0:02:58]} 3. d4 {[%clk 0:02:54]}  cxd4 {[%clk 0:02:58]} 4. Nxd4 {[%clk 0:02:54]}  Nf6 {[%clk 0:02:58]} 5. Nc3 {[%clk 0:02:53]}  Nc6 {[%clk 0:02:59]} 6. Bc4 {[%clk 0:02:45]}  e6 {[%clk 0:02:56]} 7. a4 {[%clk 0:02:37]}  a6 {[%clk 0:02:54]} 8. Nb3 {[%clk 0:02:36]}  Bd7 {[%clk 0:02:54]} 9. O-O {[%clk 0:02:33]}  Be7 {[%clk 0:02:51]} 10. a5 {[%clk 0:02:33]}  O-O {[%clk 0:02:50]} 11. Be3 {[%clk 0:02:32]}  Rc8 {[%clk 0:02:50]} 12. Be2 {[%clk 0:02:31]}  Qc7 {[%clk 0:02:49]} 13. Bb6 {[%clk 0:02:29]}  Qb8 {[%clk 0:02:49]} 14. f4 {[%clk 0:02:28]}  Nb4 {[%clk 0:02:48]} 15. e5 {[%clk 0:02:15]}  dxe5 {[%clk 0:02:46]} 16. fxe5 {[%clk 0:02:15]}  Qxe5 {[%clk 0:02:45]} 17. Rxf6 {[%clk 0:02:15]}  Bxf6 {[%clk 0:02:39]} 18. Qxd7 {[%clk 0:02:14]}  Rxc3 {[%clk 0:02:35]} 19. bxc3 {[%clk 0:02:11]}  Qxe2 {[%clk 0:02:35]} 20. Bc5 {[%clk 0:02:01]}  Nd5 {[%clk 0:02:32]} 21. Bxf8 {[%clk 0:01:59]}  Ne3 {[%clk 0:01:55]} 22. Qxb7 {[%clk 0:01:54]}  Nd1 {[%clk 0:01:43]} 23. Qa8 {[%clk 0:00:36]}  Qe1# {[%clk 0:01:42]} 0-1


[Site "https://www.chess.com"]